Cogmind - Beta 16 @@@ ROGUE MODE // 2025.11.24 @ 00:41:12 Player: Vriska Result: Destroyed by D-53 Grenadier with Mini Grenade Launcher Performance ------------- Evolutions (0) 0 Regions Visited (2) 400 Robots Destroyed (11) 55 Value Destroyed (243) 243 Prototype IDs (0) 0 Alien Tech Used (0) 0 Bonus (0) 0 TOTAL SCORE: 698 Bonus ------- None Cogmind --------- Core Integrity 0/250 Matter 288/300 Energy 250/250 System Corruption 0% Temperature Cool (0) Movement Core (100) Ox1 Location -10/Mines Parts ------- > --- POWER (1) -------- Ion Engine > --- PROPULSION (2) --- (None) > --- UTILITY (2) ------ Seismic Detector > --- WEAPON (2) ------- (None) > --- INVENTORY (5) ---- Ion Engine Structural Scanner Light Armor Plating Mining Laser Peak State ------------ > --- POWER ------------ Ion Engine > --- PROPULSION ------- Aluminum Leg Aluminum Leg > --- UTILITY ---------- Small Storage Unit Structural Scanner > --- WEAPON ----------- Assault Rifle Assault Rifle > --- INVENTORY -------- Ion Engine Medium Laser [Rating: 7] Favorites ----------- Power Ion Engine Engine Ion Engine Propulsion Aluminum Leg Leg Aluminum Leg Utility Targeting Computer Device Structural Scanner Storage Small Storage Unit Processor Targeting Computer Protection Light Armor Plating Weapon Assault Rifle Energy Gun Medium Laser Ballistic Gun Assault Rifle Launcher Rocket Launcher Build | -11 -10 -10 ------- Run | Yrd Mat Min Slots Evolved . | . . . Power . | . . . Propulsion . | . . . Utility . | . . . Weapon . | . . . Parts Attached 12 | 6 3 3 Power 1 | 1 . . Engine 1 | 1 . . Core . | . . . Reactor . | . . . Propulsion 2 | 2 . . Treads . | . . . Leg 2 | 2 . . Wheel . | . . . Hover . | . . . Flight . | . . . Utility 5 | 1 3 1 Device 2 | . 1 1 Storage 1 | 1 . . Processor 1 | . 1 . Hackware . | . . . Protection 1 | . 1 . Artifact . | . . . Weapon 4 | 2 . 2 Energy Gun 1 | . . 1 Energy Cannon . | . . . Ballistic Gun 2 | 2 . . Ballistic Cannon . | . . . Launcher 1 | . . 1 Special Weapon . | . . . Impact Weapon . | . . . Slashing Weapon . | . . . Piercing Weapon . | . . . Special Melee Weapon . | . . . Unidentified Prototypes . | . . . Parts Lost 6 | . . 6 Power . | . . . Propulsion 2 | . . 2 Utility 1 | . . 1 Weapon 3 | . . 3 Highest Loss Streak 4 | . . 4 To Critical Strikes 1 | . . 1 Average Backups 3 | 2 2 4 Power . | . 1 1 Propulsion . | . . . Utility 1 | . . 2 Weapon 1 | 1 1 1 Tool/Special . | . . . Unused Backups 1 | . . 1 Power 1 | . . 1 Propulsion . | . . . Utility . | . . . Weapon . | . . . Tool/Special . | . . . Average Slot Usage (%) 89 | . 93 86 Engine 14 | . 14 14 Leg 22 | . 28 16 Device 8 | . 4 13 Storage 3 | . 6 . Processor 10 | . 7 14 Protection 1 | . 3 . Energy Gun 5 | . . 11 Ballistic Gun 20 | . 28 13 Launcher 1 | . . 2 Peak Build Rating 7 | 6 7 7 Average Rating 6 | 4 6 6 On Entrance 4 | . 6 7 Avg Prop Armor Cover (%) . | . . . Naked Turns . | . . . Heaviest Build 15 | 14 15 12 Greatest Support 20 | 20 20 20 Greatest Overweight (x) 2 | . . 2 Average Overweight (x) . | . . . Largest Inventory Capacity 8 | 8 8 5 Average Capacity 5 | 6 6 5 Most Carried 5 | 4 5 5 Average Carried 3 | 2 2 4 Final Capacity 8 | 8 5 5 Final Carried 5 | 2 5 4 Class Distribution -------------------- 100% | Mutant Dominant Class ---------------- Mutant | -10/Materials Mutant | -10/Mines Resources | -11 -10 -10 ----------- Run | Yrd Mat Min Matter Collected 450 | 200 161 89 Remotely . | . . . Salvage Created 303 | . 171 132 Parts 12 | . 6 6 Haulers Intercepted . | . . . Recyclers Shooed . | . . . Parts Field Recycled . | . . . Retrieved Matter . | . . . Parts Self-Destructed . | . . . Prevented . | . . . Parts Restored . | . . . Kills | -11 -10 -10 ------- Run | Yrd Mat Min Combat Hostiles Destroyed 11 | . 6 5 Guns 11 | . 6 5 Classes Destroyed 2 | . 2 . Swarmer 6 | . 3 3 Grunt 5 | . 3 2 Best Kill Streak 5 | . 3 5 Combat Bots Only 5 | . 3 5 Max Kills in Single Turn 1 | . 1 1 Gunslinging . | . . . Exploded . | . . . Melee . | . . . Uniques/NPCs Destroyed . | . . . Combat | -11 -10 -10 -------- Run | Yrd Mat Min Hostile Shots Fired 80 | . 18 62 Missed 24 | . 7 17 Hits 56 | . 11 45 Projectile 56 | . 11 45 AOE 10 | . . 10 Critical Strikes 1 | . . 1 Damage Taken 831 | . 109 722 Core 250 | . 20 230 Absorbed by Shields . | . . . Core Remaining (%) 100 | 100 . . Volleys Fired 37 | . 19 18 Largest 2 | . 2 2 Hottest 70 | . 40 70 Shots Fired 67 | . 38 29 Gun 67 | . 38 29 Cannon . | . . . Launcher . | . . . Special . | . . . Kinetic 58 | . 38 20 Thermal 9 | . . 9 Explosive . | . . . Electromagnetic . | . . . Robot Hit Streak 10 | . 7 10 Robot Miss Streak 4 | . 3 4 Penetration Max . | . . . Secondary Targets 1 | . . 1 Max Gunslinging Chain 1 | . . 1 Shots Hit Robots 42 | . 23 19 Core Hits 17 | . 9 8 Critical Kills . | . . . Critical Parts Destroyed . | . . . Critical Strikes 1 | . . 1 Burn 1 | . . 1 Melee Attacks . | . . . Impact . | . . . Slashing . | . . . Piercing . | . . . Sneak Attacks . | . . . Combat Hostiles . | . . . Follow-up Attacks . | . . . Damage Inflicted 550 | . 293 257 Guns 542 | . 291 251 Cannons . | . . . Explosions . | . . . Melee . | . . . Ramming 8 | . 2 6 Kinetic 452 | . 291 161 Thermal 90 | . . 90 Explosive . | . . . Electromagnetic . | . . . Impact . | . . . Slashing . | . . . Piercing . | . . . Highest Corruption . | . . . Average Corruption . | . . . Corruption Purged . | . . . Corruption Blocked . | . . . Overload Shots . | . . . Overflow Damage . | . . . Projectiles . | . . . Explosions . | . . . Melee . | . . . Knockbacks . | . . . Impact . | . . . Kinetic . | . . . Secondary . | . . . Self-Inflicted Damage . | . . . Shots . | . . . Rammed . | . . . Targets Rammed 3 | . 2 1 Kicked 3 | . 2 1 Crushed . | . . . Highest Temperature 99 | . 2 99 Average Temperature 36 | . 2 39 Received Heat Transfer 198 | . 48 150 Siege Activations . | . . . Martial Activations . | . . . Shielding Activations . | . . . Robots Disrupted . | . . . Combat Hostiles . | . . . Robots Corrupted . | . . . Combat Hostiles . | . . . Parts Fried . | . . . Impact Corruptions . | . . . Robots Melted . | . . . Combat Hostiles . | . . . Parts Melted 3 | . . 3 Heat Transferred 333 | . . 333 Parts Sabotaged . | . . . Parts Stolen . | . . . Parts Stripped . | . . . Power Chain Reactions . | . . . Alert | -11 -10 -10 ------- Run | Yrd Mat Min Maximum Alert Level . | . . . Low Security (%) 100 | 100 100 100 Level 1 . | . . . Level 2 . | . . . Level 3 . | . . . Level 4 . | . . . Level 5 . | . . . High Security . | . . . Max Security . | . . . Peak Influence 95 | . 95 90 Initial 27 | . . 27 Average 25 | . 30 23 Influence Increases 300 | . 180 120 Destroy 0b10 Robot/C 220 | . 120 100 Destroy Leader 60 | . 40 20 Successful Hack 5 | . 5 . Lose Combat Pursuer 15 | . 15 . Influence Decreases 300 | . 109 191 Entered New Map 44 | . . 44 Time Decay 239 | . 109 130 Lost Part 17 | . . 17 Squads Dispatched 4 | . 4 . Investigation 1 | . 1 . Extermination . | . . . Reinforcement 3 | . 3 . Assault . | . . . Garrison . | . . . Intercept . | . . . Searches Triggered . | . . . Construction Impeded . | . . . Haulers Reinforced . | . . . Active Scanning Responses . | . . . Cargo Convoy Interrupts . | . . . Stealth | -11 -10 -10 --------- Run | Yrd Mat Min Distress Signals 1 | . 1 . Communications Jammed . | . . . Distress Signals . | . . . Times Spotted 21 | . 14 7 Peak Tracking Total 5 | . 5 5 Tactical Retreats 1 | . 1 . Traps | -11 -10 -10 ------- Run | Yrd Mat Min Traps Triggered 1 | . 1 . Indirectly . | . . . Trap Hack Attempts . | . . . Triggered . | . . . Disarmed . | . . . Reprogrammed . | . . . Reused . | . . . Traps Extracted . | . . . Installed . | . . . Triggered . | . . . Machines | -11 -10 -10 ---------- Run | Yrd Mat Min Machines Disabled . | . . . Max in Single Turn . | . . . Machines Repaired . | . . . Machines Dismantled . | . . . Machines Sabotaged . | . . . Overloaded Fab Kills . | . . . Hacking | -11 -10 -10 --------- Run | Yrd Mat Min Machines Accessed 1 | . 1 . Terminals 1 | . 1 . Fabricators . | . . . Repair Stations . | . . . Recycling Units . | . . . Scanalyzers . | . . . Garrison Access . | . . . Total Hacks 4 | . 4 . Successful 3 | . 3 . Failed 1 | . 1 . Catastrophic . | . . . Database Lockouts . | . . . Manual . | . . . Terminals 4 | . 4 . Fabricators . | . . . Repair Stations . | . . . Recycling Units . | . . . Scanalyzers . | . . . Garrison Access . | . . . Terminal Hacks 3 | . 3 . Alert Level 1 | . 1 . Maintenance Status 1 | . 1 . Hauler Manifests 1 | . 1 . Fabricator Hacks . | . . . Repair Station Hacks . | . . . Recycling Unit Hacks . | . . . Scanalyzer . | . . . Garrison Access Hacks . | . . . Unauthorized Hacks . | . . . Terminals . | . . . Fabricators . | . . . Repair Stations . | . . . Recycling Units . | . . . Scanalyzers . | . . . Garrison Access . | . . . Data Cores Recovered . | . . . Used . | . . . Hacking Detections . | . . . Full Trace Events . | . . . Feedback Events . | . . . Feedback Blocked . | . . . Robot Schematics Acquired . | . . . Robots Built . | . . . Authchips . | . . . Time . | . . . Total Robot Build Rating . | . . . Part Schematics Acquired . | . . . Parts Built . | . . . Authchips . | . . . Time . | . . . Total Part Build Rating . | . . . Part Studies Acquired . | . . . Parts Repaired . | . . . Time . | . . . Parts Recycled . | . . . Recycled Matter . | . . . Retrieved Matter . | . . . Retrieved Components . | . . . Parts Scanalyzed . | . . . Part Schematics Acquired . | . . . Parts Damaged . | . . . Bothacking | -11 -10 -10 ------------ Run | Yrd Mat Min Used RIF Installer . | . . . Robots Hacked . | . . . Non-combat . | . . . Combat . | . . . Robot Hacks Applied . | . . . Relay Couplers Released . | . . . Fabnet Peak Effective % . | . . . Robots Rewired . | . . . Allies Hacked . | . . . Hacks Repelled . | . . . Allies | -11 -10 -10 -------- Run | Yrd Mat Min Total Allies . | . . . Largest Group . | . . . Highest-Rated Group . | . . . Highest-Rated Ally . | . . . Total Orders . | . . . Ally Attacks . | . . . Total Damage . | . . . Kills . | . . . Allies Corrupted . | . . . Allies Melted . | . . . Intel | -11 -10 -10 ------- Run | Yrd Mat Min Active Infowar (turns) 577 | . 136 441 Structural 309 | . 136 173 Seismic 268 | . . 268 Robot Analysis Total . | . . . Derelict Logs Recovered . | . . . Drone Launches . | . . . Drone Recoveries . | . . . Exploration | -11 -10 -10 ------------- Run | Yrd Mat Min Turns Passed 968 | 60 458 450 Spaces Moved 480 | 42 267 171 Core 8 | 3 . 5 Treads . | . . . Legs 472 | 39 267 166 Wheels . | . . . Hover . | . . . Flight . | . . . Fastest Speed 50 | 50 120 120 Average Speed 125 | 115 120 135 Slowest Speed 190 | 120 120 190 Overloaded Moves . | . . . Propulsion Burnouts . | . . . Robots Hopped . | . . . Potential Cave-ins . | . . . Cave-ins Triggered . | . . . Exploration Rate (%) 29 | 3 50 35 Regions Visited 2 Branch Regions 1 Pre-discovered Areas 1 | . . 1 Known Exits Taken . | . . . Unknown Exits Taken 2 | 1 1 . Scrap Searched . | . . . Spaces Dug . | . . . Terrain Destroyed . | . . . Melee . | . . . Projectile . | . . . AOE . | . . . Terrain Rammed . | . . . Walls Destroyed . | . . . Machines Disabled . | . . . Actions | -11 -10 -10 --------- Run | Yrd Mat Min Total 776 | 51 365 360 Wait 233 | . 70 163 Move 478 | 41 266 171 Hop . | . . . Pick Up 9 | 4 4 1 Fast Attach 5 | 4 1 . Attach 6 | 2 1 3 Detach 1 | . . 1 Swap 2 | . 1 1 Drop 2 | . 1 1 Fire 37 | . 19 18 Melee . | . . . Ram . | . . . Kick 3 | . 2 1 Crush . | . . . Escape Stasis . | . . . Rewire . | . . . Trap . | . . . Miscellaneous . | . . . Route ------- -11/Scrapyard -10/Materials (discovered 2 exits: [*Mat] / [*Min]) -10/Mines (discovered 1 exit: [*Mat]) History --------- Turn | Location | Event 5 | -11/Scrapyard | Discovered new exit (range 16) 61 | -11/Scrapyard | Entered Materials 237 | -10/Materials | Discovered new exit (range 13) 313 | -10/Materials | Build established: Mutant 459 | -10/Materials | Discovered new exit (range 15) 519 | -10/Materials | Entered Mines 551 | -10/Mines | Discovered new exit (range 7) 649 | -10/Mines | Assembled infested the area 886 | -10/Mines | Received a Rocket Launcher from a helpful Derelict 900 | -10/Mines | Learned location of Storage (-8) 960 | -10/Mines | Core integrity fell below 50% 967 | -10/Mines | Core integrity fell below 20% 969 | -10/Mines | Destroyed by D-53 Grenadier with Mini Grenade Launcher Last Messages --------------- Acquired Rocket Launcher. Dropped Assault Rifle. A derelict emerges from the shadows: "Are any of them following you? I'm here trying to lose some heat after our second raid on Storage failed. Whatever you do stay away from that place, they've tightened security following our previous successful raids." World map updated: -8/Storage. 39-DLI(g): "We scattered so the Unaware couldn't effectively use their advantage in numbers, and I suggest you do the same." 39-DLI(g) slips back into the shadows. T-07 Excavator is excavating. K-01 Serf collects debris. Rocket Launcher destroyed. Aluminum Leg destroyed. K-01 Serf collects debris. Targeting Computer destroyed. U-05 Engineer builds a Wall. K-01 Serf collects debris. The unstable cave ceiling collapses. Med. Laser destroyed. Map ----- +----------------------------------------------------+ | ####?????????????????????????????????????????????? | | ####?????????????????????????????????????????????? | | # ?????????????????????????????????????????????? | | ##?????????????????????????????????????????????? | | # ##?????????????????????????????????????????????? | | # ##?????????????????????????????????????????????? | | # ####???????????????????????????????????????????? | | # #####??????????????????????????????????????????? | | # ###??????????????????????????????????????????? | | ##??????????????????????????????????????????? | | ###????????#????????????????????????????????? | | #### ?????? ?###????????????????????????????? | | #### ????? ? ##?????????????###????????????? | | ### ???? ????????????# ##???????????? | | ###???? ##???????????? ##??????????? | | ##????# ##???????????? ##??? ???? | | #### ##???## ##??????????## #?? ????? | | ####### ###??### ##?????###?## k #?# ?????? | | ######## #######r ###???### ### #?? ????? | | ##???### ######k r####### #?? ????? | | ##????## ##### #### #### #????? | | ##????## uu d #????? | | ##????## """ d ????? | | ##????######## """ # ????? | | ##????####### """ #?? ?? ??????? | | ##????### @ # #??????????? | | #?????## ### ## #??????????? | | ??????## #### #??????????? | | ??????### ####### ### #####??????????? | | ??????###### #####??# ##### ##?????????????? | | ???????###########????# ##??# ##????????????? | | ??????????#######?##### #???# #????????????? | | ??????????????????# ## #???# ##??###??????? | | ??????????????????# #???## ### #??????? | | ??????????????????# ##????## #??????? | | ??????????????????## ##??????### #??????? | | ???????????????????## ##?????????## # ##??????? | | ????????????????????####???????????#####?#???????? | | ?????????????????????????????????????????????????? | | ?????????????????????????????????????????????????? | | ?????????????????????????????????????????????????? | | ?????????????????????????????????????????????????? | | ?????????????????????????????????????????????????? | | ?????????????????????????????????????????????????? | | | | | | | | | | | | | +----------------------------------------------------+ Best States ------------- Heat Dissipation 25 Energy Generation 10 Energy Capacity 250 Matter Stores 288 Matter Capacity 300 Sight Range 16 Terrain Scan Density 10 Armor Coverage 150 Evasion (%) 55 Targeting Accuracy 5 Item Schematics ----------------- None Robot Schematics ------------------ None Fabricated ------------ Nothing Repaired ---------- Nothing Studied --------- None Alien Tech Used ----------------- None Achievements -------------- None Challenges ------------ None Game ------ Seed TimingBlanketCycler Manual? 0 Play Time 00:10:25 Cumulative 18.2 hours Start 2025.11.24 @ 00:29:25 End 2025.11.24 @ 00:41:12 Sessions 1 Manual Loads 0 Difficulty Rogue Special Mode None Game No. 37 Rogue 37 Adventurer 0 Explorer 0 Win Type - Total 0 Types 0/0/0/0/0/0/0/0/0/0 Lore% 12 Gallery% 18 Achievement% 13 Wizard Run 0 Options --------- Layout 0 ASCII 0 Keyboard 0 Movement Numpad Keybinds 0 Fullscreen 1 Font 18/SmallcapsGlow Map View 76x50 Zoom Use 0% Tactical HUD 0 Map Filters NONE Filters NONE Steam 1 RUN: bc2349f0-180e-4217-b6bd-eba2fdd82d17